Cogmind - Beta 11 *** ADVENTURER MODE // 2022.09.13 @ 10:38:00 Player: wchar_t Result: Destroyed by S-10 Pest with Light Assault Rifle Performance ------------- Evolutions (2) 1000 Regions Visited (7) 1400 Robots Destroyed (21) 105 Value Destroyed (263) 263 Prototype IDs (26) 520 Alien Tech Used (0) 0 Bonus (360) 360 TOTAL SCORE: 3648 Bonus ------- Follower Combat Kills 60 Aligned with FarCom 300 Cogmind --------- Core Integrity 0/550 Matter 287/300 Energy 100/100 System Corruption 0% Temperature Cool (18) Movement Core (50) Location -8/Materials Parts ------- > --- POWER (1) -------- (None) > --- PROPULSION (4) --- (None) > --- UTILITY (4) ------ Signal Interpreter Modified TNC > --- WEAPON (2) ------- (None) > --- INVENTORY (5) ---- Weight Redist. System Structural Scanner Visual Processing Unit Improved Terrain Scanner Heavy Explosive Trap Peak State ------------ > --- POWER ------------ Light Nuclear Core > --- PROPULSION ------- Aluminum Leg Aluminum Leg Carbon-fiber Leg > --- UTILITY ---------- Small Storage Unit Signal Interpreter Splice Drone Bay > --- WEAPON ----------- Particle Gun Light Assault Rifle > --- INVENTORY -------- Weight Redist. System Visual Processing Unit Improved Terrain Scanner Seismic Detector Utility Shielding Rocket Launcher [Rating: 21] Favorites ----------- Power Light Ion Engine Engine Light Ion Engine Power Core Light Nuclear Core Propulsion Flight Unit Leg Aluminum Leg Flight Unit Flight Unit Utility Signal Interpreter Device Improved Terrain Scanner Storage Small Storage Unit Processor Signal Interpreter Protection Utility Shielding Weapon Light Assault Rifle Energy Gun Medium Laser Ballistic Gun Light Assault Rifle Launcher Rocket Launcher Build | -11 -10 -10 -9 -9 -9 -8 -8 ------- Run | Scr Mat Min Mat Min Exi Min Mat Slots Evolved 4 | . . . 2 . . . 2 Power . | . . . . . . . . Propulsion 2 | . . . 1 . . . 1 Utility 2 | . . . 1 . . . 1 Weapon . | . . . . . . . . Parts Attached 54 | 7 5 4 6 30 . . 2 Power 7 | 1 . 3 . 3 . . . Engine 6 | 1 . 3 . 2 . . . Core 1 | . . . . 1 . . . Reactor . | . . . . . . . . Propulsion 20 | 2 2 1 2 12 . . 1 Treads . | . . . . . . . . Leg 6 | 2 . . . 4 . . . Wheel . | . . . . . . . . Hover . | . . . . . . . . Flight 14 | . 2 1 2 8 . . 1 Utility 16 | 2 1 . 4 8 . . 1 Device 10 | 2 1 . 2 5 . . . Storage 1 | . . . . 1 . . . Processor 2 | . . . 1 . . . 1 Hackware . | . . . . . . . . Protection 3 | . . . 1 2 . . . Artifact . | . . . . . . . . Weapon 11 | 2 2 . . 7 . . . Energy Gun 3 | 1 . . . 2 . . . Energy Cannon . | . . . . . . . . Ballistic Gun 6 | 1 2 . . 3 . . . Ballistic Cannon . | . . . . . . . . Launcher 2 | . . . . 2 . . . Special Weapon . | . . . . . . . . Impact Weapon . | . . . . . . . . Slashing Weapon . | . . . . . . . . Piercing Weapon . | . . . . . . . . Special Melee Weapon . | . . . . . . . . Unidentified Prototypes 1 | . . . . 1 . . . Parts Lost 18 | . . 1 . 9 . 1 7 Power 4 | . . 1 . 2 . 1 . Propulsion 7 | . . . . 3 . . 4 Utility 4 | . . . . 2 . . 2 Weapon 3 | . . . . 2 . . 1 Highest Loss Streak 7 | . . 1 . 4 . 1 7 To Critical Strikes . | . . . . . . . . Average Slot Usage (%) 94 | . 100 98 100 93 100 97 68 Engine 6 | . 14 12 11 5 . . . Core 4 | . . . . 4 11 9 . Leg 5 | . 15 . . 7 . . . Flight 23 | . 12 28 33 22 33 33 25 Device 14 | . 28 28 22 14 . . . Storage 4 | . . . . 4 11 11 9 Processor 9 | . . . 3 11 11 11 18 Protection 3 | . . . 7 1 11 11 9 Energy Gun 8 | . 14 14 11 8 . . . Ballistic Gun 13 | . 14 14 11 12 22 20 7 Naked Turns . | . . . . . . . . Heaviest Build 22 | 9 9 8 9 22 13 13 7 Greatest Support 35 | 20 20 8 12 35 12 12 16 Greatest Overweight (x) 7 | . . . . 7 1 1 . Average Overweight (x) . | . . . . . 1 . . Largest Inventory Capacity 8 | 5 5 5 5 8 8 8 8 Average Capacity 6 | 5 5 5 5 6 8 8 8 Most Carried 8 | 5 5 5 5 8 8 8 7 Average Carried 5 | 2 4 5 4 5 7 8 6 Final Capacity 8 | 5 5 5 5 8 8 8 5 Final Carried 8 | 5 5 5 5 8 8 8 5 Class Distribution -------------------- 63% | Scavenger-Mutant 23% | Scavenger-Scout 12% | Mutant Dominant Class ---------------- Mutant | -10/Materials Scavenger-Mutant | -10/Mines Scavenger-Mutant | -9/Materials Scavenger-Mutant | -9/Mines Scavenger-Mutant | -9/Exiles Scavenger-Mutant | -8/Mines Scavenger-Mutant | -8/Materials Resources | -11 -10 -10 -9 -9 -9 -8 -8 ----------- Run | Scr Mat Min Mat Min Exi Min Mat Matter Collected 882 | 203 57 134 23 465 . . . Remotely . | . . . . . . . . Salvage Created 569 | 48 134 49 108 230 . . . Parts 39 | 7 12 5 14 1 . . . Haulers Intercepted 1 | . . . 1 . . . . Recyclers Shooed . | . . . . . . . . Parts Field Recycled . | . . . . . . . . Retrieved Matter . | . . . . . . . . Parts Self-Destructed . | . . . . . . . . Prevented . | . . . . . . . . Kills | -11 -10 -10 -9 -9 -9 -8 -8 ------- Run | Scr Mat Min Mat Min Exi Min Mat Combat Hostiles Destroyed 33 | . 9 3 3 18 . . . Guns 30 | . 9 3 3 15 . . . AOE 3 | . . . . 3 . . . Classes Destroyed 7 | 1 1 . 2 3 . . . Tunneler 2 | 2 . . . . . . . Hauler 1 | . . . 1 . . . . Watcher 1 | . . . 1 . . . . Swarmer 15 | . 9 3 3 . . . . Grunt 1 | . . . . 1 . . . Duelist 1 | . . . . 1 . . . Assembled 16 | . . . . 16 . . . Best Kill Streak 6 | 1 3 3 3 6 . . . Combat Bots Only 6 | . 3 3 3 6 . . . Max Kills in Single Turn 2 | 1 2 2 1 2 . . . Gunslinging 1 | . 1 1 . 1 . . . Exploded 1 | . . . . 1 . . . Melee . | . . . . . . . . Uniques/NPCs Destroyed . | . . . . . . . . Combat | -11 -10 -10 -9 -9 -9 -8 -8 -------- Run | Scr Mat Min Mat Min Exi Min Mat Damage Taken 1885 | . 138 22 60 746 . 105 814 Core 884 | . 23 . 12 290 . 8 551 Absorbed by Shields . | . . . . . . . . Redirected to Shielding 35 | . . . 2 7 . . 26 Core Remaining (%) 70 | 100 . 90 . . . 22 . Volleys Fired 84 | 2 18 2 9 50 . . 3 Largest 2 | 2 2 2 2 2 . . 1 Hottest 98 | 70 70 70 70 98 . . 20 Shots Fired 160 | 4 35 4 18 95 1 . 3 Gun 153 | 4 35 4 18 88 1 . 3 Cannon . | . . . . . . . . Launcher 7 | . . . . 7 . . . Special . | . . . . . . . . Kinetic 84 | 2 17 2 9 50 1 . 3 Thermal 69 | 2 18 2 9 38 . . . Explosive 7 | . . . . 7 . . . Electromagnetic . | . . . . . . . . Robot Hit Streak 14 | 4 4 6 7 14 . . 7 Robot Miss Streak 3 | . 2 . 3 3 . . . Penetration Max . | . . . . . . . . Secondary Targets 8 | . 3 2 . 3 . . . Max Gunslinging Chain 1 | . 1 1 . 1 . . . Shots Hit Robots 103 | 4 19 4 10 63 . . 3 Core Hits 60 | 2 11 4 6 36 . . 1 Critical Kills . | . . . . . . . . Critical Parts Destroyed . | . . . . . . . . Critical Strikes 3 | 1 . . . 2 . . . Burn 3 | 1 . . . 2 . . . Melee Attacks . | . . . . . . . . Impact . | . . . . . . . . Slashing . | . . . . . . . . Piercing . | . . . . . . . . Sneak Attacks . | . . . . . . . . Combat Hostiles . | . . . . . . . . Follow-up Attacks . | . . . . . . . . Damage Inflicted 1323 | 52 175 41 96 933 . . 26 Guns 1044 | 52 175 41 96 654 . . 26 Cannons . | . . . . . . . . Explosions 279 | . . . . 279 . . . Melee . | . . . . . . . . Ramming . | . . . . . . . . Kinetic 397 | 27 62 15 22 245 . . 26 Thermal 647 | 25 113 26 74 409 . . . Explosive 279 | . . . . 279 . . . Electromagnetic . | . . . . . . . . Impact . | . . . . . . . . Slashing . | . . . . . . . . Piercing . | . . . . . . . . Highest Corruption 7 | . 1 1 . 7 7 7 . Average Corruption 5 | . 1 1 . 5 7 7 . Corruption Purged . | . . . . . . . . Corruption Blocked . | . . . . . . . . Effects 34 | . 1 1 . 21 9 2 . Message Errors 9 | . . . . 4 4 1 . Matter Fused 6 | . . . . 4 1 1 . Heat Flow Errors 4 | . . 1 . 3 . . . Energy Discharges 3 | . . . . 2 1 . . Data Loss (minor) 3 | . . . . 3 . . . Data Loss (major) 5 | . . . . 3 2 . . Misfires 2 | . . . . 1 1 . . Alerts 1 | . 1 . . . . . . Weapon Failures 1 | . . . . 1 . . . Overload Shots . | . . . . . . . . Overflow Damage 24 | . . . . 24 . . . Projectiles . | . . . . . . . . Explosions 24 | . . . . 24 . . . Melee . | . . . . . . . . Knockbacks . | . . . . . . . . Impact . | . . . . . . . . Kinetic . | . . . . . . . . Secondary . | . . . . . . . . Self-Inflicted Damage 52 | . . . . 52 . . . Shots 2 | . . . . 2 . . . Rammed . | . . . . . . . . Targets Rammed . | . . . . . . . . Kicked . | . . . . . . . . Crushed . | . . . . . . . . Highest Temperature 253 | 9 136 253 70 209 5 . 23 Average Temperature 55 | 6 42 105 30 62 5 . 11 Received Heat Transfer 750 | . . . 9 264 . . 477 Effects 1 | . . . . 1 . . . Energy Bleed 1 | . . . . 1 . . . Siege Activations . | . . . . . . . . Robots Corrupted . | . . . . . . . . Combat Hostiles . | . . . . . . . . Parts Fried . | . . . . . . . . Impact Corruptions . | . . . . . . . . Robots Melted . | . . . . . . . . Combat Hostiles . | . . . . . . . . Parts Melted 3 | . 1 . 2 . . . . Heat Transferred 2072 | 148 333 74 222 1295 . . . Parts Sabotaged . | . . . . . . . . Parts Stolen . | . . . . . . . . Parts Stripped . | . . . . . . . . Power Chain Reactions . | . . . . . . . . Missiles Intercepted . | . . . . . . . . Alert | -11 -10 -10 -9 -9 -9 -8 -8 ------- Run | Scr Mat Min Mat Min Exi Min Mat Peak Influence 306 | 10 252 158 306 151 . 15 110 Initial 100 | . 5 83 51 100 . . 1 Average 65 | 4 151 154 149 39 . 14 52 Maximum Alert Level 1 | . 1 . 1 . . . . Low Security (%) 94 | 100 61 100 92 100 . 100 100 Level 1 5 | . 38 . 7 . . . . Level 2 . | . . . . . . . . Level 3 . | . . . . . . . . Level 4 . | . . . . . . . . Level 5 . | . . . . . . . . High Security . | . . . . . . . . Max Security . | . . . . . . . . Squads Dispatched 5 | . 2 . 2 . . . 1 Investigation 3 | . 2 . 1 . . . . Extermination . | . . . . . . . . Reinforcement 2 | . . . 1 . . . 1 Assault . | . . . . . . . . Garrison . | . . . . . . . . Intercept . | . . . . . . . . Searches Triggered . | . . . . . . . . Construction Impeded . | . . . . . . . . Haulers Reinforced . | . . . . . . . . Active Scanning Responses . | . . . . . . . . Cargo Convoy Interrupts . | . . . . . . . . Stealth | -11 -10 -10 -9 -9 -9 -8 -8 --------- Run | Scr Mat Min Mat Min Exi Min Mat Distress Signals 6 | . . . 2 . . . 4 Communications Jammed . | . . . . . . . . Distress Signals . | . . . . . . . . Times Spotted 73 | . 13 5 10 25 . 5 15 Peak Tracking Total 13 | . 3 2 9 6 . 5 13 Tactical Retreats 6 | . 1 . 1 2 . . 2 Traps | -11 -10 -10 -9 -9 -9 -8 -8 ------- Run | Scr Mat Min Mat Min Exi Min Mat Traps Triggered 1 | . 1 . . . . . . Indirectly . | . . . . . . . . Trap Hack Attempts . | . . . . . . . . Triggered . | . . . . . . . . Disarmed . | . . . . . . . . Reprogrammed . | . . . . . . . . Reused . | . . . . . . . . Traps Extracted . | . . . . . . . . Installed . | . . . . . . . . Triggered . | . . . . . . . . Most Traps Carried 2 | . . . . 2 2 2 2 Machines | -11 -10 -10 -9 -9 -9 -8 -8 ---------- Run | Scr Mat Min Mat Min Exi Min Mat Machines Disabled . | . . . . . . . . Max in Single Turn . | . . . . . . . . Machines Sabotaged . | . . . . . . . . Garrisons Compromised . | . . . . . . . . Overloaded Fab Kills . | . . . . . . . . Hacking | -11 -10 -10 -9 -9 -9 -8 -8 --------- Run | Scr Mat Min Mat Min Exi Min Mat Machines Accessed 12 | . 5 . 4 1 1 . 1 Terminals 9 | . 4 . 4 . . . 1 Fabricators . | . . . . . . . . Repair Stations . | . . . . . . . . Recycling Units 1 | . 1 . . . . . . Scanalyzers . | . . . . . . . . Garrison Access . | . . . . . . . . Total Hacks 18 | . 7 . 8 1 1 . 1 Successful 10 | . 4 . 3 1 1 . 1 Failed 8 | . 3 . 5 . . . . Catastrophic 3 | . 1 . 2 . . . . Database Lockouts . | . . . . . . . . Manual 16 | . 7 . 8 . 1 . . Terminals 15 | . 6 . 8 . . . 1 Fabricators . | . . . . . . . . Repair Stations . | . . . . . . . . Recycling Units 1 | . 1 . . . . . . Scanalyzers . | . . . . . . . . Garrison Access . | . . . . . . . . Terminal Hacks 9 | . 3 . 3 1 1 . 1 Part Schematic 3 | . 1 . 2 . . . . Prototype ID Bank 1 | . . . . . . . 1 Open Door 1 | . . . . 1 . . . Branch Access Points 2 | . 1 . 1 . . . . Registered Components 1 | . 1 . . . . . . EX-Prototype ID Bank 1 | . . . . . 1 . . Fabricator Hacks . | . . . . . . . . Repair Station Hacks . | . . . . . . . . Recycling Unit Hacks 1 | . 1 . . . . . . Retrieve Matter 1 | . 1 . . . . . . Scanalyzer . | . . . . . . . . Garrison Access Hacks . | . . . . . . . . Unauthorized Hacks . | . . . . . . . . Terminals . | . . . . . . . . Fabricators . | . . . . . . . . Repair Stations . | . . . . . . . . Recycling Units . | . . . . . . . . Scanalyzers . | . . . . . . . . Garrison Access . | . . . . . . . . Data Cores Recovered . | . . . . . . . . Used . | . . . . . . . . Hacking Detections 5 | . 2 . 3 . . . . Full Trace Events 3 | . 1 . 2 . . . . Feedback Events 1 | . 1 . . . . . . Corruption 1 | . 1 . . . . . . Feedback Blocked . | . . . . . . . . Robot Schematics Acquired . | . . . . . . . . Robots Built . | . . . . . . . . Authchips . | . . . . . . . . Time . | . . . . . . . . Total Robot Build Rating . | . . . . . . . . Part Schematics Acquired 3 | . 1 . 2 . . . . Parts Built . | . . . . . . . . Authchips . | . . . . . . . . Time . | . . . . . . . . Total Part Build Rating . | . . . . . . . . Parts Repaired . | . . . . . . . . Time . | . . . . . . . . Parts Recycled . | . . . . . . . . Recycled Matter . | . . . . . . . . Retrieved Matter . | . . . . . . . . Retrieved Components . | . . . . . . . . Parts Scanalyzed . | . . . . . . . . Part Schematics Acquired . | . . . . . . . . Parts Damaged . | . . . . . . . . Bothacking | -11 -10 -10 -9 -9 -9 -8 -8 ------------ Run | Scr Mat Min Mat Min Exi Min Mat Used RIF Installer . | . . . . . . . . Robots Hacked . | . . . . . . . . Non-combat . | . . . . . . . . Combat . | . . . . . . . . Robot Hacks Applied . | . . . . . . . . Relay Couplers Released . | . . . . . . . . Fabnet Peak Effective % . | . . . . . . . . Robots Rewired . | . . . . . . . . Allies Hacked . | . . . . . . . . Hacks Repelled . | . . . . . . . . Allies | -11 -10 -10 -9 -9 -9 -8 -8 -------- Run | Scr Mat Min Mat Min Exi Min Mat Total Allies 1 | . . . . 1 . . . Largest Group 1 | . . . . 1 . . . Highest-Rated Group 31 | . . . . 31 . . . Highest-Rated Ally 31 | . . . . 31 . . . Total Orders . | . . . . . . . . Ally Attacks 6 | . . . . 6 . . . Total Damage 85 | . . . . 85 . . . Kills 2 | . . . . 2 . . . Allies Corrupted . | . . . . . . . . Allies Melted . | . . . . . . . . Intel | -11 -10 -10 -9 -9 -9 -8 -8 ------- Run | Scr Mat Min Mat Min Exi Min Mat Robot Analysis Total . | . . . . . . . . Derelict Logs Recovered 3 | . . 2 . 1 . . . Drone Launches . | . . . . . . . . Drone Recoveries . | . . . . . . . . Exploration | -11 -10 -10 -9 -9 -9 -8 -8 ------------- Run | Scr Mat Min Mat Min Exi Min Mat Turns Passed 2657 | 110 315 107 178 1455 246 101 145 Spaces Moved 2690 | 68 396 182 268 1268 215 108 185 Core 38 | 3 . . . 35 . . . Treads . | . . . . . . . . Legs 393 | 65 101 . . 227 . . . Wheels . | . . . . . . . . Hover . | . . . . . . . . Flight 2259 | . 295 182 268 1006 215 108 185 Fastest Speed 31 | 50 37 37 34 34 114 34 31 Average Speed 64 | 116 58 37 34 69 114 87 33 Slowest Speed 440 | 120 120 37 34 440 114 114 37 Overloaded Moves . | . . . . . . . . Propulsion Burnouts . | . . . . . . . . Robots Hopped 10 | . . . . 3 . 2 5 Cave-ins Triggered . | . . . . . . . . Exploration Rate (%) 40 | 3 55 39 32 95 59 22 15 Regions Visited 7 Branch Regions 4 Pre-discovered Areas 2 | . . 2 . . . . . Known Exits Taken 5 | . 1 . 1 1 1 1 . Unknown Exits Taken 2 | 1 . 1 . . . . . Scrap Searched 4 | . . 1 . 3 . . . Spaces Dug 7 | . . . . 7 . . . Terrain Destroyed 73 | . . . . 73 . . . Melee . | . . . . . . . . Projectile . | . . . . . . . . AOE 73 | . . . . 73 . . . Terrain Rammed . | . . . . . . . . Walls Destroyed . | . . . . . . . . Machines Disabled . | . . . . . . . . Actions | -11 -10 -10 -9 -9 -9 -8 -8 --------- Run | Scr Mat Min Mat Min Exi Min Mat Total 3440 | 91 450 218 338 1754 216 112 261 Wait 568 | 10 18 26 50 382 . 6 76 Move 2663 | 67 395 181 267 1261 214 103 175 Hop 10 | . . . . 3 . 2 5 Pick Up 21 | 5 5 1 2 7 1 . . Fast Attach 33 | 7 3 2 1 20 . . . Attach 9 | . 1 . 2 4 . . 2 Detach 5 | . . . 1 4 . . . Swap 12 | . 1 2 3 6 . . . Drop 35 | . 9 4 3 17 1 1 . Fire 84 | 2 18 2 9 50 . . 3 Melee . | . . . . . . . . Ram . | . . . . . . . . Kick . | . . . . . . . . Crush . | . . . . . . . . Escape Stasis . | . . . . . . . . Rewire . | . . . . . . . . Trap . | . . . . . . . . Miscellaneous . | . . . . . . . . Route ------- -11/Scrapyard -10/Materials -10/Mines -9/Materials -9/Mines (discovered 2 exits: *Mat / *Exi) -9/Exiles -8/Mines -8/Materials History --------- Turn | Location | Event 2 | -11/Scrapyard | Discovered new exit (range 16) 111 | -11/Scrapyard | Entered Materials 199 | -10/Materials | Identified exit to Mines 426 | -10/Materials | Entered Mines 432 | -10/Mines | Discovered new exit (range 12) 442 | -10/Mines | Joined a pair of Derelicts in attacking an 0b10 outpost 458 | -10/Mines | Learned location of Mines (-8) 468 | -10/Mines | Learned location of Zion (-6) 484 | -10/Mines | Received a Rocket Launcher from a helpful Derelict 533 | -10/Mines | Entered Materials 533 | -9/Materials | Evolved 2 slots: Propulsion x1, Utility x1 580 | -9/Materials | Build established: Scavenger-Mutant 685 | -9/Materials | Identified exit to Mines 711 | -9/Materials | Entered Mines 716 | -9/Mines | Met a Derelict bent on vengeance 730 | -9/Mines | Discovered new exit (range 5) 775 | -9/Mines | Received a Mining Laser from a helpful Derelict 969 | -9/Mines | Build established: Scavenger-Scout 1033 | -9/Mines | Found the Drone Emporium 1073 | -9/Mines | Found Prototype Device 1073 | -9/Mines | Identified Splice Drone Bay 1109 | -9/Mines | Assembled infested the area 1113 | -9/Mines | Learned Materials emergency access door positions 1347 | -9/Mines | Lost 4 parts (1p1n1u1w) 1471 | -9/Mines | Core integrity fell below 50% 1520 | -9/Mines | Lost 4 parts (1p2n1u) 1847 | -9/Mines | Build established: Scavenger-Mutant 2103 | -9/Mines | Found a hidden stash of uninstalled traps 2128 | -9/Mines | Deemed a non-threat by the Exiles lab entrance 2128 | -9/Mines | Discovered new exit (range 5) 2165 | -9/Mines | Identified exit to Exiles 2166 | -9/Mines | Entered Exiles 2195 | -9/Exiles | Met 8R-AWN 2214 | -9/Exiles | Met EX-HEX 2246 | -9/Exiles | Met EX-BIN 2261 | -9/Exiles | Aligned with FarCom system 2262 | -9/Exiles | Given EX-Vault access code 2290 | -9/Exiles | Opened EX-Vault 2300 | -9/Exiles | Found Modified TNC 2326 | -9/Exiles | Warned to stay clear of 0b10 Research branches 2360 | -9/Exiles | Met EX-DEC 2399 | -9/Exiles | Discovered new exit (range 12) 2411 | -9/Exiles | Identified exit to Mines 2412 | -9/Exiles | Left Exiles lab with Modified TNC 2412 | -9/Exiles | Entered Mines 2512 | -8/Mines | Discovered new exit (range 5) 2513 | -8/Mines | Identified exit to Materials 2513 | -8/Mines | Entered Materials 2513 | -8/Materials | Evolved 2 slots: Propulsion x1, Utility x1 2649 | -8/Materials | Core integrity fell below 50% 2655 | -8/Materials | Core integrity fell below 20% 2658 | -8/Materials | Destroyed by S-10 Pest with Light Assault Rifle Last Messages --------------- 02636_ R-06 Scavenger collects Flight Unit. 02636_ K-01 Serf collects debris. 02638_ K-01 Serf destroyed. 02640_ Flight Unit destroyed. 02640_ K-01 Serf collects debris. 02640_ Flight Unit destroyed. 02640_ Critical hit (Burn: +37). 02640_ K-01 Serf collects debris. 02644_ Critical hit (Burn: +37). 02644_ K-01 Serf collects debris. 02646_ U-05 Engineer builds a Door. 02646_ Critical hit (Burn: +37). 02646_ R-06 Scavenger collects Wheel. 02649_ K-01 Serf cleans the Terminal. 02650_ Utility Shielding destroyed. 02650_ R-06 Scavenger collects Lgt. Ion Engine. 02654_ U-05 Engineer builds a Door. 02656_ R-06 Scavenger collects Wheel. 02658_ K-01 Serf collects debris. 02658_ Sml. Storage Unit destroyed. Map ----- +----------------------------------------------------+ | ?????????????????????????????????????????????????? | | ?????????????????????????????????????????????????? | | ?????????????????????????????????????????????????? | | ?????????????????????????????????????????????????? | | ?????????????????????????????????????????????????? | | ?????????????????????????????????????????????????? | | ????????????????????????+????????????????????????? | | ?????????????????????### ##??????????????????????? | | ?????????????????????# ??????????????????????? | | ????????????????????? ??????????????????????? | | ????????????????????? ??????????????????????? | | ???a???????????????w?? ] ????????????????? ??? | | ?????????????????????? ????????????????? #?? | | ??????????????????????# #????????????????T +?? | | ??????????????????????#w #????????????????# #?? | | ??????????????????????# #?? """#?????????# #?? | | ??????????????????????+ +???"""??????????# #?? | | ??????????????????????# #?a?"""??????????# #?? | | ??????????????????????# #??? ??????????# #?? | | ??????????????????????#o #??? ??????????# #?? | | ????????????????####### Y #???#+#??????????# #?? | | ????????????#?? # % #???# #??????????# #?? | | ?????????????Y """ """# #???# #??????????# #?? | | ?????????????# """ R"# ##### ####+####### #?? | | ?????????????# """ """# s gg #?? | | ?????????????# + @ r k w +?? | | ?????????????# """ # % Y #?? | | ?????????????# """ # ###+####" ########## #?? | | ?????????????# """ ! # gg#? ??#"T#????????# #?? | | ?????????????# + gr#? !|??####????????# #?? | | ?????????????############u# | ?????????????# #?? | | ????????????????????????# # ?????????????# #?? | | ????????????????????????# # ????????????#a#?? | | ????????????????????????# # ????????????# #?? | | ????????????????????????# ########???????????# #?? | | ????????????????????????# #????????????????### ### | | ????????????????????????#a#????????????????# # | | ????????????????????????# #????????????????# # | | ????????????????????????# #????????????????# # | | ????????????????????????# #????????????????# # | | ????????????????????????# #????????????????# # | | ????????????????????????# #??????????######## ## | | ????????????????????????# #??????????# """ # ## | | ????????????????????????# #??????????# "T" # a | | ????????????????????????#a#??????????# + | | ????????????????????????# #??????????# # | | ????????????????????????# #??????????#""" ## ### | | ????????????????????????# #??????????#""" ## #?? | | ????????????????????????#/#??????????#""" ## #?? | | ????????????????????????# ??????????# ## #?? | +----------------------------------------------------+ Best States ------------- Heat Dissipation 31 Energy Generation 14 Energy Capacity 250 Matter Stores 300 Matter Capacity 300 Sight Range 16 Robot Scan Range 14 Terrain Scan Range 16 Terrain Scan Density 10 Resistance: KI 20 Resistance: TH 20 Resistance: EX 20 Resistance: EM 20 Resistance: I 20 Resistance: S 20 Resistance: P 20 Utility Shielding 33 Evasion (%) 63 Offensive Hacking 10 Item Schematics ----------------- Grenade Launcher | -10/Materials | Hacked Sensor Array | -9/Materials | Hacked Signal Interpreter | -9/Materials | Hacked Robot Schematics ------------------ None Fabricated ------------ Nothing Alien Tech Used ----------------- None Achievements -------------- Exterminator Challenges ------------ None Game ------ Seed GrenadeHeatReplicator Manual? 0 Play Time 00:48:44 Cumulative 7.5 hours Start 2022.09.12 @ 17:54:40 End 2022.09.13 @ 10:38:00 Sessions 3 Manual Loads 0 Difficulty Adventurer Special Mode None Game No. 5 Rogue 0 Adventurer 5 Explorer 0 Win Type - Total 0 Types 0/0/0/0/0/0/0/0/0 Lore% 13 Gallery% 11 Achievement% 15 Wizard Run 0 Options --------- ASCII 1 Keyboard 0 Movement Vi Keybinds 0 Fullscreen 1 Font 18/SmallcapsGlow Map View 76x50 Tactical HUD 1 Map Filters NONE Filters NONE Steam 0 RUN: 9df2895f-3d93-409a-8564-69b9b214e4ad